bitfinex-derivatives/quotes_BTCF0:USTF0_20260104
["timestamp","ask_amount","ask_price","bid_price","bid_amount"]
[1767565575656,0.02449321,91300.0,91287.0,0.010959]
[1767565575855,0.03457889,91299.0,91287.0,0.010959]
[1767565576057,0.02449321,91298.0,91278.0,0.09456035]
[1767565576355,0.02449321,91297.0,91278.0,0.12456035]
[1767565576557,0.01008568,91299.0,91279.0,0.09456035]
[1767565576758,0.02448817,91298.0,91279.0,0.12456035]
[1767565576944,0.02448817,91297.0,91279.0,0.12456035]
[1767565577144,0.01008568,91299.0,91288.0,0.010959]
[1767565577341,0.02448669,91298.0,91288.0,0.006959]
[1767565577547,0.02448669,91297.0,91288.0,0.006959]
[1767565577750,0.01008568,91297.0,91279.0,0.09456035]
[1767565577946,0.01008568,91297.0,91279.0,0.12456035]
[1767565578351,0.02448559,91296.0,91279.0,0.12456035]
[1767565578659,0.02448559,91295.0,91279.0,0.09456035]
[1767565578851,0.01008568,91297.0,91279.0,0.09456035]
[1767565579046,0.02448564,91296.0,91279.0,0.09456035]
[1767565579246,0.02448564,91295.0,91286.0,0.010959]
[1767565579557,0.01008568,91297.0,91286.0,0.010959]
[1767565579855,0.02448466,91296.0,91288.0,0.010959]
[1767565580055,0.02448466,91295.0,91288.0,0.010959]
[1767565580245,0.01008568,91297.0,91288.0,0.010959]
[1767565580447,0.02448389,91296.0,91288.0,0.010959]
[1767565580649,0.02448389,91295.0,91288.0,0.010959]
[1767565580946,0.01008568,91297.0,91288.0,0.010959]
[1767565581147,0.02448392,91296.0,91288.0,0.010959]
[1767565581359,0.02448392,91295.0,91288.0,0.010959]
[1767565581557,0.01008568,91297.0,91288.0,0.010959]
[1767565581856,0.02448328,91296.0,91288.0,0.010959]
[1767565582056,0.02448328,91295.0,91288.0,0.010959]
[1767565582356,0.01008568,91297.0,91288.0,0.010959]
[1767565582558,0.02448269,91296.0,91288.0,0.010959]
[1767565582857,0.02448269,91295.0,91288.0,0.010959]
[1767565583060,0.01008568,91297.0,91288.0,0.010959]
[1767565583257,0.02448252,91296.0,91288.0,0.010959]
[1767565583456,0.02448252,91295.0,91288.0,0.010959]
[1767565583657,0.01008568,91297.0,91288.0,0.010959]
[1767565583957,0.0244822,91296.0,91288.0,0.010959]
[1767565584261,0.0244822,91295.0,91285.0,0.010959]
[1767565584454,0.01008568,91297.0,91285.0,0.010959]
[1767565584955,0.01008568,91297.0,91279.0,0.09456035]
[1767565585150,0.01008568,91297.0,91279.0,0.12456035]
[1767565585351,0.01008568,91297.0,91285.0,0.010959]
[1767565587258,0.01008568,91297.0,91281.0,0.01096]
[1767565587554,0.01008568,91297.0,91281.0,0.04096]
[1767565592370,0.11315777,91301.0,91283.0,0.010959]
[1767565592666,0.03352135,91300.0,91283.0,0.005959]
[1767565592861,0.02448058,91299.0,91283.0,0.005959]
[1767565593061,0.02448058,91298.0,91283.0,0.005959]
[1767565593262,0.02448058,91297.0,91283.0,0.005959]
[1767565593467,0.00904077,91300.0,91283.0,0.005959]
[1767565593767,0.02448072,91299.0,91283.0,0.005959]
[1767565593962,0.02448072,91298.0,91283.0,0.005959]
[1767565594161,0.00904077,91300.0,91283.0,0.005959]
[1767565594162,0.02448072,91297.0,91283.0,0.005959]
[1767565594361,0.00904077,91300.0,91283.0,0.005959]
[1767565594558,0.02448077,91299.0,91283.0,0.005959]
[1767565594757,0.02448077,91298.0,91283.0,0.005959]
[1767565594960,0.02448077,91297.0,91283.0,0.005959]
[1767565595160,0.00904077,91299.0,91283.0,0.005959]
[1767565595360,0.02448101,91298.0,91283.0,0.005959]
[1767565595568,0.02448101,91297.0,91283.0,0.005959]
[1767565595868,0.00904077,91299.0,91283.0,0.005959]
[1767565596168,0.02448104,91298.0,91283.0,0.005959]
[1767565596368,0.02448104,91297.0,91283.0,0.005959]
[1767565596565,0.00904077,91299.0,91283.0,0.005959]
[1767565596773,0.02448141,91298.0,91283.0,0.005959]
[1767565597069,0.02448141,91297.0,91283.0,0.005959]
[1767565597271,0.00904077,91299.0,91283.0,0.005959]
[1767565597469,0.02448179,91298.0,91283.0,0.005959]
[1767565597770,0.02448179,91297.0,91283.0,0.005959]
[1767565598070,0.00904077,91299.0,91283.0,0.005959]
[1767565598367,0.02448172,91298.0,91283.0,0.005959]
[1767565598568,0.02448172,91297.0,91283.0,0.005959]
[1767565598868,0.00904077,91299.0,91283.0,0.005959]
[1767565599068,0.03371184,91298.0,91283.0,0.005959]
[1767565599265,0.02448227,91297.0,91283.0,0.005959]
[1767565599472,0.00922957,91298.0,91283.0,0.005959]
[1767565599773,0.02448312,91297.0,91283.0,0.005959]
[1767565599967,0.00922957,91298.0,91283.0,0.005959]
[1767565600167,0.02448311,91297.0,91283.0,0.005959]
[1767565600472,0.00922957,91298.0,91283.0,0.024959]
[1767565600671,0.02448422,91297.0,91283.0,0.024959]
[1767565600872,0.00922957,91298.0,91283.0,0.024959]
[1767565601071,0.02448423,91297.0,91283.0,0.024959]
[1767565601271,0.00922957,91298.0,91283.0,0.035918]
[1767565601472,0.02448552,91297.0,91283.0,0.035918]
[1767565601673,0.02448552,91296.0,91283.0,0.035918]
[1767565601970,0.00922957,91298.0,91283.0,0.035918]
[1767565602165,0.02523492,91297.0,91283.0,0.035918]
[1767565602377,0.02523492,91296.0,91283.0,0.035918]
[1767565602576,0.00922957,91298.0,91283.0,0.035918]
[1767565602777,0.02523661,91297.0,91283.0,0.035918]
[1767565602978,0.02523661,91296.0,91283.0,0.035918]
[1767565603164,0.02523883,91295.0,91283.0,0.035918]
[1767565603367,0.00922957,91298.0,91292.0,0.0295999]
[1767565604475,0.00922957,91298.0,91293.0,0.0295999]
[1767565604670,0.00922957,91298.0,91291.0,0.0295999]
[1767565607382,0.00922957,91298.0,91290.0,0.0295999]
[1767565607972,0.010958,91297.0,91290.0,0.0295999]
[1767565608172,0.010958,91297.0,91290.0,0.0125999]
[1767565609282,0.010958,91297.0,91284.0,0.03946654]
[1767565614680,0.010958,91297.0,91285.0,0.03946654]
[1767565615088,0.010958,91297.0,91286.0,0.03946654]
[1767565615780,0.010958,91297.0,91286.0,0.01546654]
[1767565616488,0.010958,91295.0,91286.0,0.01546654]
[1767565616689,0.00922957,91296.0,91281.0,0.05919981]
[1767565617279,0.00922957,91296.0,91283.0,0.05919981]
[1767565617479,0.00922957,91296.0,91284.0,0.05919981]
[1767565618477,0.00922957,91296.0,91283.0,0.05919981]
[1767565619890,0.00922957,91296.0,91284.0,0.05919981]
[1767565620494,0.010958,91297.0,91284.0,0.05919981]
[1767565620679,0.00982027,91299.0,91284.0,0.05919981]
[1767565620879,0.11668621,91300.0,91284.0,0.08919981]
[1767565621086,0.010958,91298.0,91284.0,0.05919981]
[1767565621287,0.02077827,91298.0,91284.0,0.05919981]
[1767565621585,0.010958,91298.0,91284.0,0.05919981]
[1767565621988,0.010958,91298.0,91280.0,0.10572921]
[1767565621989,0.010958,91298.0,91283.0,0.05919981]
[1767565622593,0.00982027,91300.0,91283.0,0.05919981]
[1767565622888,0.104117,91301.0,91285.0,0.09542671]
[1767565623597,0.104117,91301.0,91285.0,0.07342671]
[1767565623994,0.010957,91301.0,91285.0,0.10342671]
[1767565624383,0.010957,91301.0,91285.0,0.07342671]
[1767565624596,0.02077727,91301.0,91284.0,0.010959]
[1767565625396,0.010958,91298.0,91282.0,0.05919981]
[1767565627487,0.010958,91298.0,91281.0,0.05919981]
[1767565629494,0.010958,91298.0,91281.0,0.08919981]
[1767565630398,0.010958,91298.0,91281.0,0.05919981]
[1767565631393,0.010958,91298.0,91281.0,0.03819981]
[1767565633303,0.02716809,91297.0,91278.0,0.09542671]
[1767565633503,0.02716809,91296.0,91278.0,0.09542671]
[1767565633705,0.02716809,91295.0,91278.0,0.09542671]
[1767565633893,0.02716809,91294.0,91278.0,0.09542671]
[1767565634093,0.02716809,91293.0,91278.0,0.18858671]
[1767565634395,0.02716809,91292.0,91278.0,0.18858671]
[1767565634599,0.010958,91298.0,91279.0,0.09542671]
[1767565634899,0.02716796,91297.0,91279.0,0.09542671]
[1767565635092,0.02716796,91296.0,91279.0,0.09542671]
[1767565635293,0.02716796,91295.0,91279.0,0.09542671]
[1767565635593,0.02716796,91294.0,91279.0,0.09542671]
[1767565635793,0.02716796,91293.0,91279.0,0.09542671]
[1767565635994,0.02716796,91292.0,91279.0,0.09542671]
[1767565636193,0.02716801,91291.0,91279.0,0.09542671]
[1767565636395,0.010958,91298.0,91279.0,0.09542671]
[1767565636597,0.02716787,91297.0,91279.0,0.09542671]
[1767565636906,0.02716787,91296.0,91279.0,0.09542671]
[1767565637106,0.02716787,91295.0,91279.0,0.09542671]
[1767565637307,0.02716787,91294.0,91279.0,0.09542671]
[1767565637508,0.02716787,91293.0,91279.0,0.09542671]
[1767565637708,0.02716787,91292.0,91279.0,0.09542671]
[1767565637914,0.02716787,91291.0,91279.0,0.09542671]
[1767565638115,0.010958,91296.0,91279.0,0.09542671]
[1767565638414,0.02716803,91295.0,91279.0,0.09542671]
[1767565638615,0.02716803,91294.0,91279.0,0.12542671]
[1767565638815,0.02716803,91293.0,91279.0,0.12542671]
[1767565639117,0.02716803,91292.0,91279.0,0.11042671]
[1767565639306,0.02716803,91291.0,91279.0,0.11042671]
[1767565639505,0.010958,91296.0,91279.0,0.11042671]
[1767565639713,0.02716785,91295.0,91279.0,0.11042671]
[1767565639914,0.02716785,91294.0,91279.0,0.03]
[1767565640115,0.02716785,91293.0,91279.0,0.03]
[1767565640315,0.02716785,91292.0,91279.0,0.03]
[1767565640517,0.02716785,91291.0,91279.0,0.03]
[1767565640714,0.010958,91296.0,91279.0,0.03]
[1767565640917,0.02716776,91295.0,91279.0,0.03]
[1767565641124,0.010958,91296.0,91279.0,0.03]
[1767565641125,0.02716776,91294.0,91279.0,0.12542671]
[1767565641417,0.02716776,91293.0,91279.0,0.12542671]
[1767565641607,0.02716776,91292.0,91279.0,0.12542671]
[1767565641809,0.02716776,91291.0,91279.0,0.12542671]
[1767565642018,0.010958,91296.0,91279.0,0.12542671]
[1767565642218,0.02716768,91295.0,91279.0,0.12542671]
[1767565642418,0.02716768,91294.0,91279.0,0.12542671]
[1767565642621,0.02716768,91293.0,91279.0,0.12542671]
[1767565642812,0.02716768,91292.0,91279.0,0.12542671]
[1767565643010,0.10572921,91300.0,91280.0,0.09542671]
[1767565643011,0.010957,91299.0,91280.0,0.09542671]
[1767565643211,0.010957,91299.0,91280.0,0.12542671]
[1767565644711,0.010957,91299.0,91281.0,0.09542671]
[1767565645018,0.010957,91299.0,91281.0,0.12542671]
[1767565646724,0.010957,91299.0,91281.0,0.11242671]
[1767565650129,0.010957,91299.0,91282.0,0.09542671]
[1767565654523,0.010957,91299.0,91282.0,0.08042671]
[1767565655028,0.02705828,91298.0,91282.0,0.08042671]
[1767565655231,0.02705828,91297.0,91282.0,0.08042671]
[1767565655528,0.02705828,91296.0,91282.0,0.08042671]
[1767565655728,0.02705828,91295.0,91282.0,0.08042671]
[1767565655930,0.02705828,91294.0,91282.0,0.08042671]
[1767565656128,0.02705828,91293.0,91282.0,0.08042671]
[1767565656329,0.02705828,91292.0,91282.0,0.08042671]
[1767565656629,0.010957,91299.0,91282.0,0.08042671]
[1767565656928,0.02705845,91298.0,91282.0,0.08042671]
[1767565657130,0.02705845,91297.0,91282.0,0.08042671]
[1767565657330,0.02705845,91296.0,91282.0,0.08042671]
[1767565657529,0.02705845,91295.0,91282.0,0.08042671]
[1767565657730,0.02705845,91294.0,91282.0,0.08042671]
[1767565657931,0.02705845,91293.0,91282.0,0.08042671]
[1767565658132,0.02705845,91292.0,91282.0,0.08042671]
[1767565658330,0.010957,91299.0,91282.0,0.08042671]
[1767565658530,0.02705841,91298.0,91282.0,0.08042671]
[1767565658731,0.03801641,91297.0,91282.0,0.08042671]
[1767565658930,0.02705841,91296.0,91282.0,0.08042671]
[1767565659230,0.02705841,91295.0,91282.0,0.08042671]
[1767565659429,0.02705841,91294.0,91282.0,0.08042671]
[1767565659628,0.02705841,91293.0,91282.0,0.08042671]
[1767565659829,0.02705841,91292.0,91282.0,0.08042671]
[1767565660030,0.02705841,91291.0,91282.0,0.08042671]
[1767565660231,0.010958,91297.0,91282.0,0.08042671]
[1767565660429,0.02705883,91296.0,91282.0,0.08042671]
[1767565660631,0.02705883,91295.0,91282.0,0.08042671]
[1767565660929,0.02705883,91294.0,91282.0,0.08042671]
[1767565661132,0.02705883,91293.0,91282.0,0.08042671]
[1767565661331,0.02705883,91292.0,91282.0,0.08042671]
[1767565661526,0.010958,91297.0,91282.0,0.08042671]
[1767565661732,0.02705919,91296.0,91282.0,0.08042671]
[1767565661932,0.02705919,91295.0,91282.0,0.08042671]
[1767565662237,0.02705919,91294.0,91282.0,0.07042671]
[1767565662439,0.02705919,91293.0,91282.0,0.07042671]
[1767565662733,0.02705919,91292.0,91282.0,0.07042671]
[1767565662937,0.02705919,91291.0,91282.0,0.07042671]
[1767565663143,0.010958,91297.0,91282.0,0.07042671]
[1767565663332,0.02708442,91296.0,91282.0,0.07042671]
[1767565663631,0.02708442,91295.0,91282.0,0.07042671]
[1767565663830,0.02708442,91294.0,91282.0,0.07042671]
[1767565664033,0.02708442,91293.0,91282.0,0.07042671]
[1767565664232,0.02708442,91292.0,91282.0,0.07042671]
[1767565664432,0.02708442,91291.0,91282.0,0.07042671]
[1767565664633,0.02708442,91290.0,91282.0,0.07042671]
[1767565664937,0.11668621,91300.0,91282.0,0.07042671]
[1767565665129,0.02708452,91299.0,91282.0,0.07042671]
[1767565665330,0.02708452,91298.0,91282.0,0.07042671]
[1767565665539,0.02708452,91297.0,91282.0,0.07042671]
[1767565665739,0.02708452,91296.0,91282.0,0.07042671]
[1767565665937,0.02708452,91295.0,91282.0,0.07042671]
[1767565666139,0.02708452,91294.0,91282.0,0.07042671]
[1767565666445,0.02708452,91293.0,91282.0,0.07042671]
[1767565666640,0.02708452,91292.0,91282.0,0.07042671]
[1767565666943,0.010957,91300.0,91282.0,0.07042671]
[1767565669842,0.010957,91300.0,91282.0,0.06142671]
[1767565677547,0.010957,91300.0,91282.0,0.07742671]
[1767565678050,0.010958,91298.0,91282.0,0.04742671]
[1767565678347,0.010958,91298.0,91282.0,0.07742671]
[1767565678950,0.02696707,91297.0,91282.0,0.07742671]
[1767565679248,0.02696707,91296.0,91282.0,0.07742671]
[1767565679449,0.02696707,91295.0,91282.0,0.07742671]
[1767565679647,0.02696707,91294.0,91282.0,0.07742671]
[1767565679844,0.02696707,91293.0,91282.0,0.07742671]
[1767565680144,0.02696707,91292.0,91282.0,0.07742671]
[1767565680449,0.010958,91298.0,91282.0,0.07742671]
[1767565680749,0.02696712,91297.0,91282.0,0.07742671]
[1767565680941,0.02696712,91296.0,91282.0,0.07742671]
[1767565681142,0.02696712,91295.0,91282.0,0.07742671]
[1767565681344,0.02696712,91294.0,91282.0,0.07742671]
[1767565681543,0.02696712,91293.0,91282.0,0.07742671]
[1767565681744,0.02696712,91292.0,91282.0,0.07742671]
[1767565681938,0.010958,91298.0,91282.0,0.07742671]
[1767565682142,0.02696706,91297.0,91282.0,0.07742671]
[1767565682342,0.02696706,91296.0,91282.0,0.07742671]
[1767565682542,0.02696706,91295.0,91282.0,0.07742671]
[1767565682737,0.09316,91302.0,91283.0,0.10260368]
[1767565683042,0.05899088,91307.0,91283.0,0.10260368]
[1767565683043,0.010957,91307.0,91287.0,0.09164468]
[1767565683243,0.09316,91308.0,91289.0,0.10260368]
[1767565683548,0.09316,91308.0,91289.0,0.13260368]
[1767565683853,0.09316,91308.0,91290.0,0.09164468]
[1767565684037,0.09316,91308.0,91291.0,0.09164468]
[1767565684237,0.09316,91308.0,91291.0,0.12164468]
[1767565685253,0.09316,91308.0,91291.0,0.10964468]
[1767565688455,0.09316,91308.0,91291.0,0.12060268]
[1767565694757,0.02661134,91307.0,91291.0,0.12060268]
[1767565695060,0.09316,91308.0,91291.0,0.12060268]
[1767565695061,0.02661134,91306.0,91291.0,0.12060268]
[1767565695254,0.02661134,91305.0,91291.0,0.12060268]
[1767565695455,0.02661134,91304.0,91291.0,0.12060268]
[1767565695654,0.02661134,91303.0,91291.0,0.12060268]
[1767565695858,0.02661134,91302.0,91291.0,0.12060268]
[1767565696053,0.02661134,91301.0,91291.0,0.12060268]
[1767565696253,0.02661134,91300.0,91291.0,0.12060268]
[1767565696454,0.09316,91316.0,91299.0,0.10260168]
[1767565696759,0.09753748,91320.0,91301.0,0.010957]
[1767565696760,0.09316,91319.0,91301.0,0.010957]
[1767565697160,0.09316,91319.0,91301.0,0.040957]
[1767565697847,0.19069748,91319.0,91301.0,0.040957]
[1767565698053,0.20165248,91319.0,91301.0,0.03]
[1767565698361,0.20165248,91319.0,91301.0,0.040957]
[1767565700558,0.09753748,91318.0,91301.0,0.040957]
[1767565702865,0.09753748,91318.0,91304.0,0.010957]
[1767565703254,0.02012961,91322.0,91299.0,0.09164468]
[1767565703255,0.09316,91322.0,91306.0,0.010957]
[1767565703757,0.19069748,91322.0,91306.0,0.040957]
[1767565705665,0.19069748,91322.0,91306.0,0.035957]
[1767565706564,0.20165248,91322.0,91306.0,0.035957]
[1767565707360,0.09753748,91321.0,91306.0,0.035957]
[1767565713674,0.09753748,91321.0,91306.0,0.023957]
[1767565714174,0.09753748,91321.0,91306.0,0.034914]
[1767565714376,0.11842629,91320.0,91306.0,0.034914]
[1767565714569,0.09201666,91320.0,91306.0,0.034914]
[1767565717572,0.12073886,91319.0,91306.0,0.034914]
[1767565717771,0.09432567,91319.0,91306.0,0.034914]
[1767565717972,0.09432567,91319.0,91308.0,0.010956]
[1767565718272,0.09432567,91319.0,91308.0,0.040956]
[1767565721170,0.09432567,91319.0,91308.0,0.03]
[1767565721574,0.09432567,91319.0,91299.0,0.09164468]
[1767565721768,0.09432567,91319.0,91299.0,0.12164468]
[1767565722282,0.02642747,91318.0,91299.0,0.12164468]
[1767565722466,0.09432567,91319.0,91299.0,0.12164468]
[1767565722667,0.09316,91322.0,91310.0,0.010956]
[1767565722873,0.09432567,91325.0,91310.0,0.010956]
[1767565723072,0.09432567,91325.0,91310.0,0.040956]
[1767565723572,0.09432567,91325.0,91310.0,0.03]
[1767565723779,0.01036808,91331.0,91310.0,0.03]
[1767565723780,0.01036808,91331.0,91316.0,0.010955]
[1767565723969,0.010953,91333.0,91316.0,0.040955]
[1767565724171,0.02132108,91333.0,91316.0,0.040955]
[1767565724471,0.01036808,91333.0,91317.0,0.010955]
[1767565724672,0.01036808,91341.0,91324.0,0.010954]
[1767565724878,0.01036808,91339.0,91321.0,0.010955]
[1767565725068,0.09316,91339.0,91326.0,9.688e-05]
[1767565725268,0.09316,91339.0,91329.0,0.010954]
[1767565725469,0.01036808,91346.0,91331.0,0.010954]
[1767565725970,0.09432567,91344.0,91331.0,0.010954]
[1767565726176,0.09316,91343.0,91331.0,0.040954]
[1767565726371,0.09432567,91344.0,91331.0,0.010954]
[1767565726576,0.09432567,91342.0,91323.0,0.09071727]
[1767565726774,0.09432567,91335.0,91323.0,0.03]
[1767565726983,0.10469375,91341.0,91326.0,0.010954]
[1767565727182,0.10469375,91341.0,91326.0,0.040954]
[1767565727478,0.09316,91343.0,91331.0,0.010954]
[1767565727674,0.09316,91343.0,91331.0,0.040954]
[1767565727870,0.00218942,91349.0,91334.0,0.010953]
[1767565728075,0.09316,91348.0,91334.0,0.040953]
[1767565728975,0.09316,91348.0,91334.0,0.03]
[1767565729279,0.09316,91348.0,91334.0,0.040953]
[1767565729481,0.09316,91348.0,91334.0,0.010953]
[1767565729871,0.00218942,91349.0,91335.0,0.010953]
[1767565730076,0.09316,91348.0,91326.0,0.09071727]
[1767565732185,0.09316,91348.0,91331.0,0.010954]
[1767565732385,0.18748567,91348.0,91331.0,0.010954]
[1767565733684,0.09312,91347.0,91331.0,0.010954]
[1767565735289,0.18744567,91347.0,91331.0,0.010954]
[1767565736289,0.09432567,91346.0,91331.0,0.010954]
[1767565736692,0.09432567,91346.0,91330.0,0.1055856]
[1767565737193,0.09432567,91346.0,91331.0,0.010954]
[1767565739203,0.18744567,91346.0,91331.0,0.040954]
[1767565741500,0.18744567,91346.0,91333.0,0.010953]
[1767565741695,0.09312,91346.0,91333.0,0.010953]
[1767565742395,0.09312,91346.0,91336.0,0.1055856]
[1767565742786,0.19034837,91346.0,91336.0,0.1055856]
[1767565744298,0.19034837,91346.0,91336.0,0.0965856]
[1767565746505,0.19034837,91346.0,91333.0,0.010953]
[1767565748206,0.10791112,91346.0,91333.0,0.010953]
[1767565748601,0.10791112,91346.0,91336.0,0.1055856]
[1767565751495,0.09722837,91346.0,91333.0,0.010953]
[1767565751700,0.10791112,91345.0,91333.0,0.010953]
[1767565752008,0.10791112,91345.0,91330.0,0.1055856]
[1767565752209,0.10791112,91345.0,91333.0,0.010953]
[1767565754809,0.10791112,91344.0,91333.0,0.010953]
[1767565759710,0.10791112,91344.0,91330.0,0.1055856]
[1767565759918,0.10791112,91344.0,91334.0,0.1055856]
[1767565763812,0.104072,91347.0,91321.0,0.19016596]
[1767565763813,0.09722837,91342.0,91330.0,0.1165396]
[1767565764012,0.09722837,91342.0,91330.0,0.1465396]
[1767565764812,0.09722837,91342.0,91333.0,0.010953]
[1767565766518,0.09722837,91342.0,91333.0,0.040953]
[1767565766713,0.09722837,91342.0,91333.0,0.010953]
[1767565767519,0.09722837,91342.0,91330.0,0.0965386]
[1767565767717,0.09722837,91342.0,91330.0,0.1265386]
[1767565768114,0.09722837,91342.0,91333.0,0.010953]
[1767565770517,0.01069129,91348.0,91330.0,0.0965386]
[1767565770717,0.02534156,91347.0,91338.0,0.1055856]
[1767565771019,0.02534156,91346.0,91338.0,0.1055856]
[1767565771213,0.02534156,91345.0,91338.0,0.1055856]
[1767565771410,0.01069129,91348.0,91338.0,0.1055856]
[1767565771607,0.02534111,91347.0,91338.0,0.1055856]
[1767565771816,0.02534111,91346.0,91338.0,0.1055856]
[1767565772019,0.02534111,91345.0,91338.0,0.1055856]
[1767565772220,0.01069129,91348.0,91338.0,0.1055856]
[1767565772409,0.02534048,91347.0,91338.0,0.1055856]
[1767565772609,0.02534048,91346.0,91338.0,0.1055856]
[1767565772911,0.02534048,91345.0,91338.0,0.1055856]
[1767565773111,0.01069129,91348.0,91338.0,0.1055856]
[1767565773312,0.02534048,91347.0,91338.0,0.1055856]
[1767565773509,0.02534048,91346.0,91338.0,0.1055856]
[1767565773817,0.02534048,91345.0,91337.0,0.010953]
[1767565774017,0.01069129,91348.0,91337.0,0.010953]
[1767565774216,0.02533996,91347.0,91337.0,0.010953]
[1767565774521,0.01069129,91348.0,91337.0,0.010953]
[1767565774823,0.02533952,91347.0,91337.0,0.010953]
[1767565775022,0.01069129,91348.0,91337.0,0.010953]
[1767565775223,0.02533952,91347.0,91330.0,0.1005386]
[1767565775422,0.01069129,91348.0,91336.0,0.010953]
[1767565775724,0.02533921,91347.0,91336.0,0.010953]
[1767565775922,0.01069129,91348.0,91336.0,0.010953]
[1767565776117,0.0253392,91347.0,91336.0,0.010953]
[1767565776324,0.01069129,91348.0,91336.0,0.010953]
[1767565776524,0.02533891,91347.0,91336.0,0.010953]
[1767565776822,0.01069129,91348.0,91336.0,0.010953]
[1767565777009,0.02533891,91347.0,91336.0,0.010953]
[1767565777216,0.01069129,91348.0,91336.0,0.010953]
[1767565777422,0.02533873,91347.0,91336.0,0.010953]
[1767565777621,0.01069129,91348.0,91336.0,0.010953]
[1767565777920,0.00218942,91349.0,91336.0,0.03]
[1767565778123,0.00218942,91349.0,91330.0,0.1931476]
[1767565778323,0.01354156,91349.0,91330.0,0.2231476]
[1767565778519,0.01354156,91349.0,91330.0,0.1931476]
[1767565778723,0.01354156,91349.0,91334.0,0.010953]
[1767565779323,0.01354156,91349.0,91334.0,0.040953]
[1767565779929,0.01135214,91346.0,91333.0,0.010953]
[1767565780826,0.01135214,91346.0,91333.0,0.040953]
[1767565782827,0.01135214,91346.0,91333.0,0.021953]
[1767565783129,0.01135214,91346.0,91333.0,0.032906]
[1767565785731,0.01135214,91343.0,91333.0,0.032906]
[1767565786133,0.01135214,91342.0,91335.0,0.010953]
[1767565786332,0.09866574,91343.0,91332.0,0.010953]
[1767565786533,0.01135214,91346.0,91332.0,0.010953]
[1767565787226,0.01135214,91346.0,91336.0,0.010953]
[1767565789936,0.09866574,91348.0,91336.0,0.010953]
[1767565790236,0.02508255,91347.0,91338.0,0.010953]
[1767565790534,0.11001788,91348.0,91330.0,0.0954916]
[1767565790737,0.11001788,91348.0,91330.0,0.1254916]
[1767565793237,0.11001788,91348.0,91337.0,0.010953]
[1767565796335,0.01135214,91347.0,91337.0,0.010953]
[1767565796946,0.01135214,91338.0,91326.0,0.09312]
[1767565797145,1.4e-07,91338.0,91326.0,0.10312]
[1767565797341,0.00218942,91349.0,91335.0,0.010953]
[1767565797540,0.00218942,91349.0,91335.0,0.040953]
[1767565798241,0.00218942,91349.0,91335.0,0.027953]
[1767565799048,0.01135214,91347.0,91335.0,0.027953]
[1767565803657,0.01220613,91345.0,91326.0,0.09312]
[1767565803857,0.01220613,91345.0,91330.0,0.010954]
[1767565804857,0.01220613,91344.0,91326.0,0.09312]
[1767565805051,0.10267355,91344.0,91326.0,0.09312]
[1767565805252,0.01220613,91343.0,91326.0,0.09312]
[1767565805657,0.01220613,91343.0,91330.0,0.010954]
[1767565805954,0.01220613,91343.0,91326.0,0.087074]
[1767565806460,0.01220613,91346.0,91326.0,0.087074]
[1767565807157,0.01220613,91346.0,91330.0,0.010954]
[1767565808162,0.01220613,91345.0,91330.0,0.010954]
[1767565809159,0.01220613,91344.0,91330.0,0.010954]
[1767565811059,0.01220613,91330.0,91299.0,0.21693648]
[1767565811250,0.01220613,91331.0,91307.0,0.010956]
[1767565811453,0.09312,91333.0,91308.0,0.10948465]
[1767565811654,0.01220613,91339.0,91326.0,0.010954]
[1767565811862,0.11815315,91338.0,91311.0,0.010956]
[1767565812161,0.10532613,91338.0,91326.0,0.010954]
[1767565812565,0.10267355,91337.0,91313.0,0.010956]
[1767565812753,0.10267355,91337.0,91314.0,0.010956]
[1767565812954,0.01220613,91341.0,91329.0,0.010954]
[1767565813160,0.09312,91340.0,91326.0,0.00654013]
[1767565813358,0.10267355,91347.0,91326.0,0.00654013]
[1767565813555,0.09312,91346.0,91336.0,0.010953]
[1767565813757,0.09312,91346.0,91336.0,0.005953]
[1767565814260,0.09046742,91347.0,91336.0,0.005953]
[1767565814561,0.09312,91346.0,91336.0,0.005953]
[1767565818066,0.10532613,91346.0,91336.0,0.005953]
[1767565821468,0.10532613,91346.0,91325.0,0.08906825]
[1767565821666,0.10532613,91346.0,91335.0,0.010953]
[1767565822469,0.19579355,91346.0,91335.0,0.010953]
[1767565823568,0.01220613,91345.0,91335.0,0.010953]
[1767565824371,0.01220613,91345.0,91325.0,0.08906825]
[1767565824372,0.01220613,91345.0,91332.0,0.010953]
[1767565826671,0.10267355,91345.0,91332.0,0.010953]
[1767565828476,0.01220613,91344.0,91332.0,0.010953]
[1767565829174,0.01220613,91344.0,91325.0,0.08302125]
[1767565829374,0.01220613,91344.0,91330.0,0.010954]
[1767565829576,0.01220613,91343.0,91330.0,0.010954]
[1767565831378,0.10532613,91343.0,91330.0,0.010954]
[1767565835579,0.19808968,91343.0,91330.0,0.010954]
[1767565836880,0.19808968,91343.0,91321.0,0.00586863]
[1767565837579,0.19808968,91343.0,91328.0,0.010954]
[1767565838579,0.10621987,91342.0,91328.0,0.010954]
[1767565840582,0.10621987,91342.0,91330.0,0.010954]
[1767565841675,0.01345632,91341.0,91330.0,0.010954]
[1767565844588,0.01345632,91341.0,91320.0,0.09181455]
[1767565844789,0.01345632,91341.0,91321.0,0.03]
[1767565846191,0.01345632,91341.0,91328.0,0.010954]
[1767565847295,0.01345632,91341.0,91330.0,0.010954]
[1767565852497,0.01345632,91341.0,91320.0,0.08776855]
[1767565852695,0.01345632,91341.0,91320.0,0.11776855]
[1767565853388,0.01345632,91341.0,91331.0,0.010954]
[1767565856999,0.01345632,91341.0,91330.0,0.10560509]
[1767565860103,0.01345632,91341.0,91330.0,0.09560509]
[1767565860697,0.02440832,91341.0,91330.0,0.09560509]
[1767565860900,0.02440832,91341.0,91325.0,0.010954]
[1767565861291,0.10626657,91330.0,91311.0,0.07872162]
[1767565861491,0.10626657,91330.0,91290.0,0.10560509]
[1767565861492,0.01328449,91321.0,91305.0,0.17184162]
[1767565861692,0.09312,91333.0,91310.0,0.10560509]
[1767565861893,0.02503815,91332.0,91310.0,0.11560509]
[1767565862192,0.09312,91333.0,91310.0,0.11560509]
[1767565862392,0.010952,91341.0,91322.0,0.010955]
[1767565862598,0.010953,91339.0,91322.0,0.010955]
[1767565862901,0.010953,91339.0,91316.0,0.11086234]
[1767565862902,0.02501837,91338.0,91329.0,0.10560509]
[1767565863106,0.09312,91339.0,91323.0,0.01256772]
[1767565863303,0.09312,91339.0,91320.0,0.10560509]
[1767565863304,0.09312,91339.0,91325.0,0.11086234]
[1767565863506,0.09312,91339.0,91331.0,0.010954]
[1767565863806,0.09312,91342.0,91333.0,0.010953]
[1767565867901,0.09312,91342.0,91329.0,0.10560509]